bitfinex-derivatives/quotes_ETHF0:USTF0_20250317
["timestamp","ask_amount","ask_price","bid_price","bid_amount"]
[1742182744892,0.6639,1909.4,1909.3,41.84758]
[1742182745092,3.387,1909.5,1909.4,1.04753]
[1742182745299,2.7872,1909.6,1909.5,1.04747]
[1742182745593,6.1742,1909.6,1909.5,1.04747]
[1742182746095,4.7639,1909.6,1909.5,1.04747]
[1742182746998,4.0789,1909.6,1909.5,1.04747]
[1742182747192,0.6919,1909.6,1909.5,1.04747]
[1742182747494,31.761,1909.8,1909.7,1.04736]
[1742182747695,36.4749,1909.8,1909.7,1.04736]
[1742182750495,31.0729,1909.8,1909.7,1.04736]
[1742182750699,33.768,1909.8,1909.7,1.04736]
[1742182751298,33.768,1909.8,1909.7,41.84736]
[1742182751799,34.4672,1909.8,1909.7,41.84736]
[1742182752599,33.768,1909.8,1909.7,41.84736]
[1742182752899,34.4538,1909.8,1909.7,41.84736]
[1742182755102,35.9043,1909.8,1909.7,41.84736]
[1742182762109,5.5233,1909.8,1909.7,41.84736]
[1742182765411,2.1363,1909.8,1909.7,41.84736]
[1742182765615,5.5223,1909.8,1909.7,41.84736]
[1742182766306,4.0718,1909.8,1909.7,41.84736]
[1742182766512,3.386,1909.8,1909.7,41.84736]
[1742182771109,1.4389,1909.9,1909.8,1.04731]
[1742182771414,4.8249,1909.9,1909.8,2.50281]
[1742182773113,30.364,1910.2,1910.1,1.04714]
[1742182773319,33.75,1910.2,1910.1,1.04714]
[1742182773908,35.1414,1910.2,1910.1,41.84714]
[1742182774215,35.1414,1910.2,1910.1,43.20574]
[1742182774619,31.7554,1910.2,1910.1,43.20574]
[1742182774816,35.1414,1910.2,1910.1,43.20574]
[1742182776425,35.844,1910.2,1910.1,43.20574]
[1742182778017,36.89109,1910.2,1910.1,42.1586]
[1742182778709,36.89109,1910.2,1910.1,40.8]
[1742182779618,40.09889,1910.2,1910.1,40.8]
[1742182780013,41.01870966,1910.2,1910.1,40.8]
[1742182780512,40.09889,1910.2,1910.1,40.8]
[1742182780712,35.844,1910.2,1910.1,41.84714]
[1742182780912,35.844,1910.2,1910.1,43.23164]
[1742182781314,36.89109,1910.2,1910.1,40.8]
[1742182781714,41.01871163,1910.2,1910.1,40.8]
[1742182784524,46.88871163,1910.2,1910.1,40.8]
[1742182784725,45.96889,1910.2,1910.1,40.8]
[1742182784919,46.88872611,1910.2,1910.1,40.8]
[1742182787516,45.96889,1910.2,1910.1,40.8]
[1742182790332,40.09889,1910.2,1910.1,40.8]
[1742182794527,41.01907151,1910.2,1910.1,40.8]
[1742182795235,37.81127151,1910.2,1910.1,40.8]
[1742182795432,41.01907151,1910.2,1910.1,40.8]
[1742182798249,37.81127151,1910.2,1910.1,40.8]
[1742182798550,41.01907151,1910.2,1910.1,40.8]
[1742182800452,10.65507151,1910.2,1910.1,40.8]
[1742182801352,9.60798151,1910.2,1910.1,40.8]
[1742182801546,3.2078,1910.2,1910.1,41.84714]
[1742182801747,3.384,1910.2,1910.1,42.55934]
[1742182802450,4.59478,1910.3,1910.2,1.04709]
[1742182802656,1.21078,1910.3,1910.2,3.05279]
[1742182803149,4.59478,1910.3,1910.2,3.05279]
[1742182804254,5.64181,1910.3,1910.2,1.3277]
[1742182804554,8.33781,1910.3,1910.2,1.3277]
[1742182806053,1.04709,1910.2,1910.1,40.8]
[1742182806256,2.39549,1910.2,1910.1,40.8]
[1742182807253,5.60329,1910.2,1910.1,40.8]
[1742182816870,6.52425979,1910.2,1910.1,40.8]
[1742182824865,5.60329,1910.2,1910.1,40.8]
[1742182825768,4.25489,1910.2,1910.1,40.8]
[1742182826067,4.25489,1910.2,1910.1,41.5253]
[1742182827166,5.68539,1910.2,1910.1,41.5253]
[1742182827962,4.6383,1910.2,1910.1,41.5253]
[1742182828270,5.68539,1910.2,1910.1,41.5253]
[1742182828565,5.68539,1910.2,1910.1,42.9129]
[1742182828869,6.5908,1910.2,1910.1,43.96004]
[1742182829065,3.2078,1910.2,1910.1,43.96004]
[1742182829271,6.5908,1910.2,1910.1,43.96004]
[1742182829878,6.5908,1910.2,1910.1,42.9129]
[1742182830070,6.5908,1910.2,1910.1,43.96004]
[1742182831267,3.2078,1910.2,1910.1,43.96004]
[1742182831470,34.95278,1910.3,1910.2,1.04709]
[1742182831771,34.95278,1910.3,1910.2,3.02719]
[1742182838876,31.56978,1910.3,1910.2,3.02719]
[1742182840278,32.61681,1910.3,1910.2,1.9801]
[1742182840478,32.61681,1910.3,1910.2,1.3236]
[1742182840679,35.43251,1910.3,1910.2,1.3236]
[1742182842773,38.64031,1910.3,1910.2,1.3236]
[1742182843173,1.04709,1910.2,1910.1,40.8]
[1742182843374,2.46199,1910.2,1910.1,42.2175]
[1742182845183,2.46199,1910.2,1910.1,40.8]
[1742182848989,8.33199,1910.2,1910.1,40.8]
[1742182850491,11.71399,1910.2,1910.1,40.8]
[1742182850790,10.6669,1910.2,1910.1,40.8]
[1742182851190,9.252,1910.2,1910.1,43.22614]
[1742182852594,5.87,1910.2,1910.1,43.22614]
[1742182852982,5.87,1910.2,1910.1,43.90434]
[1742182854882,31.56978,1910.3,1910.2,1.04709]
[1742182855091,31.56978,1910.3,1910.2,3.17179]
[1742182856588,31.56978,1910.3,1910.2,6.37959]
[1742182856787,31.56978,1910.3,1910.2,3.17179]
[1742182859490,32.96518,1910.3,1910.2,3.17179]
[1742182860392,33.67498,1910.3,1910.2,2.45099]
[1742182863395,31.56978,1910.3,1910.2,2.45099]
[1742182864000,1.21078,1910.3,1910.2,3.80199]
[1742182864888,9.0778,1910.7,1910.2,3.80199]
[1742182864889,5.87,1911.0,1910.3,2.61759]
[1742182865090,5.87,1911.0,1910.7,1.04682]
[1742182865091,5.409,1910.8,1910.7,1.04682]
[1742182865491,5.409,1910.8,1910.7,41.84682]
[1742182866092,6.45576,1910.8,1910.7,40.8]
[1742182866694,8.95576,1910.8,1910.7,40.8]
[1742182866997,2.61718,1910.7,1910.1,1.04714]
[1742182867197,1.04704,1910.3,1910.1,2.48624]
[1742182867496,6.0952,1910.2,1910.1,2.48624]
[1742182867898,6.0952,1910.2,1910.1,43.28624]
[1742182870104,6.0952,1910.2,1910.1,42.2391]
[1742182870496,6.0952,1910.2,1910.1,43.28624]
[1742182871388,1.04696,1910.5,1910.2,1.04709]
[1742182871593,6.1227,1910.4,1910.2,2.48499]
[1742182871803,4.7404,1910.4,1910.3,1.4379]
[1742182872704,8.99518,1910.4,1910.3,1.4379]
[1742182873404,1.04705,1910.3,1910.1,40.8]
[1742182873595,1.04705,1910.3,1910.2,1.4379]
[1742182874602,7.9482,1910.4,1910.2,1.4379]
[1742182875105,8.99522,1910.4,1910.2,1.4379]
[1742182875403,8.99522,1910.4,1910.2,2.48497]
[1742182875604,8.99522,1910.4,1910.2,1.4379]
[1742182875802,8.99522,1910.4,1910.3,1.4308]
[1742182877308,8.99522,1910.4,1910.1,41.84712]
[1742182877607,8.99522,1910.4,1910.2,1.4066]
[1742182878606,7.9482,1910.4,1910.2,2.45367]
[1742182878905,7.9482,1910.4,1910.3,1.4066]
[1742182879506,1.3594,1910.4,1910.3,2.45363]
[1742182879805,4.7404,1910.4,1910.3,2.45363]
[1742182880401,4.7404,1910.4,1910.3,1.4066]
[1742182880603,4.7404,1910.4,1910.3,2.45363]
[1742182880806,1.3594,1910.4,1910.3,2.45363]
[1742182881008,4.7404,1910.4,1910.3,2.45363]
[1742182882415,36.224,1910.6,1910.3,1.4066]
[1742182882607,36.224,1910.6,1910.5,1.04693]
[1742182882812,34.4014,1910.6,1910.5,1.04693]
[1742182882999,33.735,1910.6,1910.5,1.76203]
[1742182883508,33.735,1910.6,1910.5,2.44543]
[1742182883702,33.735,1910.6,1910.5,46.45323]
[1742182883903,6.5364,1910.8,1910.7,1.04682]
[1742182884207,9.9174,1910.8,1910.7,1.04682]
[1742182884595,9.9174,1910.8,1910.7,41.84682]
[1742182887108,4.0474,1910.8,1910.7,41.84682]
[1742182888113,3.381,1910.8,1910.7,41.84682]
[1742182889007,0.6978,1910.9,1910.8,1.04676]
[1742182889208,4.0788,1910.9,1910.8,2.46096]
[1742182889604,4.0788,1910.9,1910.8,43.26096]
[1742182890310,5.4113,1910.9,1910.8,43.26096]
[1742182890716,5.4113,1910.9,1910.8,42.2142]
[1742182891512,5.4113,1910.9,1910.8,43.26096]
[1742182893813,5.4113,1910.9,1910.8,42.2142]
[1742182894004,6.45801,1910.9,1910.8,42.2142]
[1742182894204,5.4113,1910.9,1910.8,42.2142]
[1742182895312,5.4113,1910.9,1910.8,43.26096]
[1742182895505,6.45801,1910.9,1910.8,42.2142]
[1742182904519,6.45801,1910.9,1910.8,40.8]
[1742182904719,15.83520163,1910.9,1910.8,40.8]
[1742182906223,13.33520163,1910.9,1910.8,40.8]
[1742182906411,13.33519073,1910.9,1910.8,40.8]
[1742182907624,14.01727687,1910.9,1910.8,40.8]
[1742182908023,16.51727687,1910.9,1910.8,40.8]
[1742182908520,14.01727687,1910.9,1910.8,40.8]
[1742182909421,14.01727652,1910.9,1910.8,40.8]
[1742182909612,17.22507652,1910.9,1910.8,40.8]
[1742182910017,19.72507652,1910.9,1910.8,40.8]
[1742182910325,19.72507523,1910.9,1910.8,40.8]
[1742182910525,19.72504946,1910.9,1910.8,40.8]
[1742182911920,19.72504117,1910.9,1910.8,40.8]
[1742182913222,1.04676,1910.8,1910.7,0.00785649]
[1742182913422,4.16839117,1910.8,1910.7,0.00785649]
[1742182913628,6.66839117,1910.8,1910.7,0.00785649]
[1742182913830,6.57995482,1910.8,1910.7,0.00785649]
[1742182914030,6.6684208,1910.8,1910.7,0.00785649]
[1742182914228,6.6684208,1910.8,1910.7,40.80785649]
[1742182914919,5.98633466,1910.8,1910.7,40.80785649]
[1742182915632,5.98634281,1910.8,1910.7,40.80785649]
[1742182916031,6.66829923,1910.8,1910.7,40.80785649]
[1742182916431,12.53829586,1910.8,1910.7,40.80785649]
[1742182916826,12.53818689,1910.8,1910.7,40.80785649]
[1742182918230,15.74598689,1910.8,1910.7,40.80785649]
[1742182919523,15.65751613,1910.8,1910.7,40.80785649]
[1742182919826,15.74598764,1910.8,1910.7,40.80785649]
[1742182920025,15.65751613,1910.8,1910.7,40.80785649]
[1742182921221,1.04698,1910.4,1910.3,1.4367]
[1742182921424,7.63478,1910.4,1910.3,1.4367]
[1742182922434,7.72326678,1910.4,1910.3,42.2367]
[1742182922633,9.83606678,1910.4,1910.3,42.2367]
[1742182922829,16.62447003,1910.4,1910.3,42.2367]
[1742182923025,16.62447003,1910.4,1910.2,0.00785649]
[1742182923026,1.04703,1910.3,1910.2,0.00785649]
[1742182923235,4.13892003,1910.3,1910.2,0.00785649]
[1742182923430,6.63892003,1910.3,1910.2,0.00785649]
[1742182924035,6.63892003,1910.3,1910.2,40.80785649]
[1742182924428,6.63890861,1910.3,1910.2,40.80785649]
[1742182925129,7.05927823,1910.3,1910.2,40.80785649]
[1742182925538,6.63890861,1910.3,1910.2,40.80785649]
[1742182927929,7.05418168,1910.3,1910.2,40.80785649]
[1742182928238,12.92418168,1910.3,1910.2,40.80785649]
[1742182928639,10.42418168,1910.3,1910.2,40.80785649]
[1742182929338,2.61798,1910.1,1909.3,0.07054]
[1742182929643,1.04736,1909.7,1909.6,1.334]
[1742182929842,13.59363536,1909.7,1909.6,1.334]
[1742182930138,13.59358976,1909.7,1909.6,1.334]
[1742182930333,13.50516,1909.7,1909.6,42.134]
[1742182930540,13.59358959,1909.7,1909.6,42.134]
[1742182934332,13.50516,1909.7,1909.6,42.134]
[1742182935132,14.50981248,1909.7,1909.6,42.134]
[1742182935746,14.50983072,1909.7,1909.6,42.134]
[1742182936840,5.95845625,1909.7,1909.6,42.134]
[1742182937041,9.251,1909.7,1909.6,42.134]
[1742182937337,5.0885,1910.1,1909.6,42.134]
[1742182937638,4.51670437,1910.0,1909.6,40.8]
[1742182937828,4.42823,1910.0,1909.6,40.8]
[1742182938030,3.381,1909.9,1909.6,40.8]
[1742182938238,3.381,1909.9,1909.6,41.84741]
[1742182938437,3.381,1909.8,1909.7,1.04736]
[1742182938631,3.0054,1909.8,1909.7,1.04736]
[1742182939240,3.0054,1909.8,1909.6,41.84739]
[1742182940242,3.0054,1909.8,1909.7,1.04736]
[1742182940444,3.0054,1909.8,1909.6,41.84738]
[1742182940633,4.05271,1909.8,1909.7,1.3373]
[1742182942142,3.0054,1909.8,1909.7,1.3373]
[1742182943942,1.04726,1909.9,1909.7,1.3373]
[1742182944143,3.381,1909.8,1909.7,1.3373]
[1742182945340,3.381,1909.8,1909.7,2.38466]
[1742182945739,3.38,1909.8,1909.7,2.38466]
[1742182946037,3.38,1910.0,1909.7,3.8373]
[1742182946246,2.92777,1910.3,1910.1,1.04714]
[1742182946541,2.92777,1910.3,1909.7,3.2078]
[1742182946542,1.04707,1910.3,1910.2,1.3207]
[1742182946744,4.42707,1910.3,1910.2,1.3207]
[1742182946947,6.59477,1910.3,1910.2,1.3207]
[1742182947142,7.40315876,1910.3,1910.2,1.3207]
[1742182947640,1.04726,1909.9,1909.6,41.8474]
[1742182947846,3.38,1909.8,1909.7,1.3484]
[1742182948035,3.38,1909.8,1909.7,2.39576]
[1742182949042,4.42731,1909.8,1909.7,1.3484]
[1742182949247,3.38,1909.8,1909.7,1.3484]
[1742182949747,4.42731,1909.8,1909.7,1.3484]
[1742182949953,3.38,1909.8,1909.7,1.3484]
[1742182950340,4.8075,1909.8,1909.7,1.3484]
[1742182951947,5.85481,1909.8,1909.7,1.3484]
[1742182954648,4.8075,1909.8,1909.7,1.3484]
[1742182955251,4.8075,1909.8,1909.7,2.39576]
[1742182955551,3.38,1909.8,1909.7,1.3484]
[1742182955753,6.5878,1909.9,1909.8,1.04731]
[1742182955943,3.38,1909.9,1909.8,1.04731]
[1742182956145,3.38,1910.0,1909.9,1.04725]
[1742182956545,4.29496,1910.1,1909.9,1.04725]
[1742182956744,4.29496,1910.1,1910.0,1.3264]
[1742182956946,5.79426,1910.1,1910.0,1.3264]
[1742182957469,5.79424,1910.1,1910.0,1.3264]
[1742182959550,1.3671,1910.1,1910.0,1.3264]
[1742182959857,4.7471,1910.1,1910.0,1.3264]
[1742182960454,1.3671,1910.1,1910.0,1.3264]
[1742182960656,4.7471,1910.1,1910.0,1.3264]
[1742182961055,5.79424,1910.1,1910.0,1.3264]
[1742182961752,4.7471,1910.1,1910.0,1.3264]
[1742182962755,5.79424,1910.1,1910.0,1.3264]
[1742182963255,5.79424,1910.1,1909.8,1.04728]
[1742182963457,2.7673,1910.0,1909.9,1.4128]
[1742182964459,2.7673,1910.0,1909.8,1.04728]
[1742182964662,1.3573,1909.9,1909.8,1.04728]
[1742182966654,1.3573,1909.9,1909.7,1.4128]
[1742182966852,1.3573,1909.9,1909.8,1.04731]
[1742182967057,1.04731,1909.8,1909.7,1.4128]
[1742182967256,1.04736,1909.7,1909.6,40.8]
[1742182967456,3.83226,1909.7,1909.6,40.8]
[1742182967655,3.83226,1909.7,1909.6,42.17]
[1742182968452,3.83226,1909.7,1909.6,40.8]
[1742182969264,7.04006,1909.7,1909.6,40.8]
[1742182972961,8.04782447,1909.7,1909.6,40.8]
[1742182974663,7.1284906,1909.7,1909.6,40.8]
[1742182978065,9.0091906,1909.7,1909.6,40.8]
[1742182978257,9.00919985,1909.7,1909.6,40.8]
[1742182980763,9.00921622,1909.7,1909.6,40.8]
[1742182983467,9.00921285,1909.7,1909.6,40.8]
[1742182984370,12.38921285,1909.7,1909.6,40.8]
[1742182985162,12.30076,1909.7,1909.6,40.8]
[1742182985363,12.38918895,1909.7,1909.6,40.8]
[1742182986970,12.38918895,1909.7,1909.6,42.204]
[1742182988473,12.38918895,1909.7,1909.6,40.8]
[1742182988773,12.38918895,1909.7,1909.6,42.204]
[1742182989173,12.30076,1909.7,1909.6,42.204]
[1742182989374,12.38919186,1909.7,1909.6,42.204]
[1742182990373,12.38919186,1909.7,1909.6,40.8]
[1742182990573,8.92076,1909.7,1909.6,40.8]
[1742182990769,10.5531,1909.7,1909.6,42.224]
[1742182991677,9.8961,1909.7,1909.6,42.224]
[1742182991877,8.4685,1909.7,1909.6,42.224]
[1742182992378,5.2607,1909.7,1909.6,42.224]
[1742182993480,6.30806,1909.7,1909.6,42.224]
[1742182993869,5.2607,1909.7,1909.6,42.224]
[1742182994479,6.30806,1909.7,1909.6,42.224]
[1742182994677,6.6696,1909.7,1909.6,42.224]
[1742182994982,5.2607,1909.7,1909.6,42.224]
[1742182995677,1.04729,1909.9,1909.6,42.224]
[1742182995873,3.38,1909.8,1909.7,1.3776]
[1742182997871,2.46479,1909.9,1909.7,1.3776]
[1742182998178,3.38,1909.8,1909.7,1.3776]
[1742182998578,1.4175,1909.9,1909.7,2.42496]
[1742182998781,3.38,1909.8,1909.7,2.42496]
[1742182998979,3.38,1909.8,1909.7,1.04736]
[1742183000377,3.38,1909.8,1909.6,40.8]
[1742183000378,3.2078,1910.0,1909.6,40.8]
[1742183000571,7.635,1910.0,1909.8,1.04728]
[1742183000874,1.0472,1910.0,1909.6,44.0078]
[1742183001079,3.38,1910.0,1909.9,1.04725]
[1742183001269,3.38,1910.0,1909.6,44.0078]
[1742183001474,3.38,1910.0,1909.9,1.04725]
[1742183004674,4.7137,1910.0,1909.9,1.04725]
[1742183005176,30.36,1910.1,1910.0,1.0472]
[1742183005375,35.0737,1910.1,1910.0,1.0472]
[1742183006984,35.0737,1910.1,1909.6,44.0078]
[1742183007180,2.7593,1910.0,1909.6,44.0078]
[1742183007483,2.7593,1910.0,1909.7,1.04736]
[1742183007484,2.38198,1909.9,1909.7,1.04736]
[1742183007684,4.7794,1909.8,1909.6,41.84738]
[1742183007886,1.4004,1909.7,1909.6,41.84738]
[1742183008188,2.1047,1909.7,1909.6,41.84738]
[1742183008785,2.1047,1909.7,1909.6,40.8]
[1742183008984,2.8221,1909.7,1909.6,40.8]
[1742183009787,2.8221,1909.7,1909.6,41.84742]
[1742183009998,2.8221,1909.7,1909.6,40.8]
[1742183010475,2.8221,1909.7,1909.6,43.17932]
[1742183010675,2.8221,1909.7,1909.6,42.1319]
[1742183010878,2.8221,1909.7,1909.6,43.17932]
[1742183011789,2.8221,1909.7,1909.6,42.1319]
[1742183011988,3.86946,1909.7,1909.6,42.1319]
[1742183012285,2.8221,1909.7,1909.6,42.1319]
[1742183012682,3.86946,1909.7,1909.6,42.1319]
[1742183012877,2.8221,1909.7,1909.6,43.17932]
[1742183013085,2.1047,1909.7,1909.6,43.17932]
[1742183013281,3.379,1909.8,1909.7,1.04736]
[1742183013480,3.379,1909.8,1909.7,2.47396]
[1742183014389,1.4487,1909.9,1909.8,1.04731]
[1742183014683,4.8277,1909.9,1909.8,2.44901]
[1742183015988,5.87495,1909.9,1909.8,1.4017]
[1742183016186,1.04731,1909.8,1909.6,41.84739]
[1742183016489,1.4126,1909.7,1909.6,41.84739]
[1742183016987,2.45996,1909.7,1909.6,40.8]
[1742183017683,1.4126,1909.7,1909.6,42.2459]
[1742183018084,2.8185,1909.7,1909.6,40.8]
[1742183020291,2.8185,1909.7,1909.6,41.84742]
[1742183020791,2.8185,1909.7,1909.6,40.8]
[1742183021089,2.8185,1909.7,1909.6,43.20352]
[1742183021591,2.8185,1909.7,1909.6,42.1561]
[1742183021996,2.8185,1909.7,1909.6,40.8]
[1742183022293,2.8185,1909.7,1909.6,41.84742]
[1742183022493,6.1975,1909.7,1909.6,43.20352]
[1742183024388,2.8185,1909.7,1909.6,43.20352]
[1742183024694,5.4976,1909.7,1909.6,43.20352]
[1742183025185,2.1186,1909.7,1909.6,43.20352]
[1742183025387,5.4976,1909.7,1909.6,43.20352]
[1742183025789,2.1186,1909.7,1909.6,43.20352]
[1742183025996,3.379,1909.8,1909.7,1.04733]
[1742183026190,3.379,1909.8,1909.7,2.49603]
[1742183026988,1.4104,1909.9,1909.7,2.49603]
[1742183027295,3.379,1909.8,1909.6,40.8]
[1742183027497,3.379,1909.8,1909.7,2.49604]
[1742183028688,4.777,1909.8,1909.7,2.49604]
[1742183029197,3.379,1909.8,1909.7,2.49604]
[1742183029403,2.0106,1909.9,1909.8,1.04731]
[1742183029591,5.3896,1909.9,1909.8,2.45821]
[1742183030595,33.739,1910.1,1910.0,1.0472]
[1742183030795,35.0543,1910.1,1910.0,1.0472]
[1742183031200,35.0543,1910.1,1910.0,2.4581]
[1742183031390,31.6753,1910.1,1910.0,2.4581]
[1742183031895,32.3604,1910.1,1910.0,2.4581]
[1742183032198,33.0566,1910.1,1910.0,2.4581]
[1742183033700,30.36,1910.1,1910.0,2.4581]
[1742183033901,1.3624,1910.2,1910.1,1.04714]
[1742183034101,4.0631,1910.3,1910.2,1.04709]
[1742183034301,5.4255,1910.3,1910.2,1.04709]
[1742183035300,5.4255,1910.3,1910.2,43.21699]
[1742183056621,5.4255,1910.3,1910.2,41.84709]
[1742183057113,5.4255,1910.3,1910.2,43.29429]
[1742183059318,8.6333,1910.3,1910.2,40.8]
[1742183060022,8.6333,1910.3,1910.2,41.84709]
[1742183060824,5.4255,1910.3,1910.2,41.84709]
[1742183063027,2.0475,1910.3,1910.2,41.84709]
[1742183063429,2.0475,1910.3,1910.2,43.22739]
[1742183072430,2.0475,1910.3,1910.2,43.89280401]
[1742183072630,3.38385649,1910.5,1910.4,1.04698]
[1742183079435,3.38385649,1910.5,1910.4,2.43888]
[1742183080535,4.70315649,1910.5,1910.4,2.43888]
[1742183088734,4.70315649,1910.5,1910.4,1.04698]
[1742183092445,4.70315649,1910.5,1910.2,41.84704]
[1742183092660,1.04703,1910.3,1910.2,40.8]
[1742183093151,3.90684756,1910.3,1910.2,40.8]
[1742183093558,1.04716,1910.1,1909.8,1.04727]
[1742183093754,3.2078,1909.9,1909.8,1.04727]
[1742183094058,4.7886,1910.0,1909.8,41.84728]
[1742183094059,6.2264,1910.0,1909.8,41.84728]
[1742183094359,1.4378,1909.9,1909.8,41.84728]
[1742183100261,5.69285,1909.9,1909.8,40.8]
[1742183100869,4.6456,1909.9,1909.8,40.8]
[1742183101063,4.8138,1909.9,1909.8,41.84731]
[1742183101566,3.376,1909.9,1909.8,41.84731]
[1742183101753,2.1383,1910.0,1909.9,1.04725]
[1742183101955,5.5143,1910.0,1909.9,2.50035]
[1742183102158,3.376,1910.0,1909.9,2.50035]
[1742183102667,3.376,1910.3,1910.2,1.04709]
[1742183102869,3.21565649,1910.5,1910.1,2.61787]
[1742183103162,3.2078,1911.3,1911.2,1.04654]
[1742183103365,5.2612,1911.3,1911.2,1.04654]
[1742183103561,5.2612,1911.3,1911.2,41.84654]
[1742183103755,3.376,1911.3,1911.2,41.84654]
[1742183104359,3.376,1911.3,1911.2,43.21284]
[1742183104556,3.38385649,1911.4,1911.3,1.04649]
[1742183104764,0.00785649,1911.4,1911.3,1.04649]
[1742183105467,3.2078,1911.7,1911.6,1.04632]
[1742183105765,1.8807,1912.7,1911.6,3.54632]
[1742183105766,4.2537,1912.4,1911.6,3.54632]
[1742183105973,1.442,1912.2,1912.1,1.04601]
[1742183106165,4.82,1912.2,1912.1,41.84605]
[1742183106361,4.82,1912.2,1912.1,40.8]
[1742183106562,1.442,1912.2,1912.1,40.8]
[1742183106862,9.07279,1912.2,1912.1,40.8]
[1742183107273,5.69579,1912.2,1912.1,40.8]
[1742183107571,9.07079,1912.2,1912.1,40.8]
[1742183108070,0.6656,1912.4,1912.2,1.04598]
[1742183108262,1.442,1912.3,1912.2,1.04598]
[1742183108462,1.442,1912.3,1912.2,2.39918]
[1742183108662,1.442,1912.3,1912.2,1.3532]
[1742183110169,1.442,1912.3,1912.2,2.39919]
[1742183110370,0.6656,1912.4,1912.2,2.39919]
[1742183110671,0.6656,1912.4,1912.3,1.04594]
[1742183110872,0.6656,1912.4,1912.2,1.3532]
[1742183111366,1.4377,1912.3,1912.2,1.3532]
[1742183112071,1.4377,1912.3,1912.1,40.8]
[1742183112275,6.5918,1912.2,1911.3,10.04083027]
[1742183112573,1.04621,1911.9,1911.6,1.3597]
[1742183112771,4.7561,1911.8,1911.7,40.8]
[1742183112962,4.7561,1911.8,1911.7,42.1597]
[1742183115575,4.7561,1911.8,1911.7,43.20597]
[1742183115872,4.7521,1911.8,1911.7,42.1597]
[1742183116676,4.7521,1911.8,1911.7,43.20597]
[1742183117165,4.7521,1911.8,1911.7,42.1597]
[1742183117771,5.79831,1911.8,1911.7,42.1597]
[1742183118076,4.7521,1911.8,1911.7,42.1597]
[1742183118370,5.79831,1911.8,1911.7,42.1597]
[1742183118876,4.7521,1911.8,1911.7,42.1597]
[1742183119479,4.7521,1911.8,1911.7,43.20597]
[1742183120478,0.00785649,1911.9,1911.8,1.04621]
[1742183120780,3.38985649,1911.9,1911.8,1.04621]
[1742183121572,0.00785649,1911.9,1911.8,1.04621]
[1742183122676,6.5958,1912.4,1912.3,1.04594]
[1742183123178,6.5958,1912.4,1912.3,41.84594]
[1742183125178,1.3668,1912.7,1912.3,40.8]
[1742183125373,2.7856,1912.7,1912.6,1.04578]
[1742183125574,2.1262,1912.7,1912.6,1.04578]
[1742183127885,5.5112,1912.7,1912.6,1.04578]
[1742183130786,5.5112,1912.7,1912.4,1.4226]
[1742183131184,6.55696,1912.7,1912.5,1.04583]
[1742183131380,5.5112,1912.7,1912.6,1.04578]
[1742183131577,5.5112,1912.7,1912.3,40.8]
[1742183131779,4.25367,1912.5,1912.3,41.84593]
[1742183132082,4.7862,1912.4,1912.3,41.84593]
[1742183133384,4.7862,1912.4,1912.3,41.84594]
[1742183133682,4.7862,1912.4,1912.3,40.8]
[1742183133985,5.83208,1912.4,1912.3,40.8]
[1742183134287,4.7862,1912.4,1912.3,41.84594]
[1742183137188,4.7862,1912.4,1912.3,40.8]
[1742183137488,5.83208,1912.4,1912.3,40.8]
[1742183139285,4.7862,1912.4,1912.3,40.8]
[1742183139485,4.7862,1912.4,1912.3,42.1823]
[1742183139882,4.7862,1912.4,1912.3,43.22824]
[1742183140086,4.7862,1912.4,1912.3,42.1823]
[1742183140281,3.38,1912.4,1912.3,43.22824]
[1742183140481,0.7074,1912.7,1912.6,1.04578]
[1742183140685,5.4806,1912.7,1912.6,1.04578]
[1742183140885,5.4806,1912.7,1912.4,1.3823]
[1742183141091,5.4806,1912.7,1912.6,1.04578]
[1742183143080,5.4806,1912.7,1912.4,1.3823]
[1742183143081,3.2078,1913.0,1912.8,1.04564]
[1742183143286,5.64586,1913.0,1912.9,1.3224]
[1742183143483,9.03086,1913.0,1912.7,1.04569]
[1742183143679,1.3925,1912.9,1912.8,1.3224]
[1742183144091,1.3925,1912.9,1912.8,2.36807]
[1742183144294,1.3925,1912.9,1912.8,43.16807]
[1742183144482,1.3925,1912.9,1912.8,42.1224]
[1742183144793,2.43811,1912.9,1912.8,40.8]
[1742183144990,3.14991,1912.9,1912.8,40.8]
[1742183150295,2.1043,1912.9,1912.8,40.8]
[1742183150595,3.14991,1912.9,1912.8,40.8]
[1742183155793,7.53061,1912.9,1912.8,40.8]
[1742183155998,1.04588,1912.4,1912.3,1.3323]
[1742183156303,7.63068,1912.4,1912.3,1.3323]
[1742183156896,7.63068,1912.4,1912.3,42.1323]
[1742183157094,9.07318,1912.4,1912.3,42.1323]
[1742183160802,10.61571311,1912.4,1912.2,0.00785649]
[1742183161104,2.38884,1912.3,1912.2,0.00785649]
[1742183161305,2.47725472,1912.3,1912.2,0.00785649]
[1742183161802,4.35795472,1912.3,1912.2,40.80785649]
[1742183163204,4.35795462,1912.3,1912.2,40.80785649]
[1742183166392,6.85795462,1912.3,1912.2,40.80785649]
[1742183166593,7.77409909,1912.3,1912.2,40.80785649]
[1742183167804,1.04616,1911.9,1911.8,0.06784]
[1742183168004,9.50966,1911.9,1911.8,0.06784]